fUST/lending_fUST_20251014
["ID","MTS","AMOUNT","RATE_DAILY","PERIOD"]
[391246915,1760426147463,-10000.01,0.00018904,2]
[391246916,1760426147720,-10000.01,0.00018904,2]
[391246917,1760426148002,-10000.01,0.00018904,2]
[391246918,1760426148262,-10000.01,0.00018904,2]
[391246919,1760426148516,-10000.01,0.00018904,2]
[391246920,1760426148782,-10000.01,0.00018904,2]
[391246921,1760426151471,-10000.01,0.00018904,2]
[391246922,1760426152013,-1159.55555305,0.00018904,2]
[391246923,1760426153315,2226.17850983,0.00018715,2]
[391246924,1760426161532,5000.0,0.00018904,2]
[391246925,1760426169347,454.72038407,0.00018904,2]
[391246926,1760426169435,4545.27961593,0.00018904,2]
[391246927,1760426172538,167.17540248,0.00018904,2]
[391246928,1760426175445,500.0,0.00018903,2]
[391246929,1760426175536,500.0,0.00018903,2]
[391246930,1760426175621,500.0,0.00018903,2]
[391246931,1760426175710,500.0,0.00018903,2]
[391246932,1760426175802,500.0,0.00018903,2]
[391246933,1760426175895,500.0,0.00018903,2]
[391246934,1760426176011,500.0,0.00018903,2]
[391246935,1760426176114,500.0,0.00018903,2]
[391246936,1760426176211,500.0,0.00018903,2]
[391246937,1760426176316,500.0,0.00018903,2]
[391246938,1760426176417,287.55498159,0.00018903,2]
[391246939,1760426195034,-392.25198149,0.00018527,2]
[391246940,1760426198199,-186.25992739,0.00018527,2]
[391246941,1760426199876,-170.58916506,0.00018527,2]
[391246942,1760426201615,-366.10083494,0.00018342,2]
[391246943,1760426204286,-212.41107394,0.00018342,2]
[391246944,1760426204308,-153.36094117,0.00018527,2]
[391246945,1760426207635,-204.12336471,0.00018527,2]
[391246954,1760426376334,5000.0,0.00018,2]
[391246955,1760426385042,5000.0,0.00018,2]
[391246956,1760426400048,5000.0,0.00018,2]
[391246958,1760426407971,302.41232937,0.00018,2]
[391246959,1760426416508,1106.58537982,0.00018,2]
[391246960,1760426427996,151.0,0.00017,2]
[391246961,1760426428981,151.0,0.00017366,2]
[391246962,1760426429979,151.0,0.00017733,2]
[391246973,1760426475330,-151.0,0.000181,2]
[391246974,1760426490237,-5000.0,0.00018624,2]
[391246975,1760426512366,5000.0,0.00018812,2]
[391246976,1760426535388,5000.0,0.00018812,2]
[391246977,1760426558538,0.01,0.00018812,2]
[391246978,1760426558618,4999.99,0.00018812,2]
[391246979,1760426580958,5000.0,0.00018812,2]
[391246980,1760426594070,0.02,0.00017775,2]
[391246981,1760426594162,1312.55642252,0.00017775,2]
[391246982,1760426594400,1312.57642252,0.0001783,2]
[391246983,1760426594720,1312.57642252,0.00018143,2]
[391246984,1760426595045,1312.57642252,0.00018594,2]
[391246985,1760426595382,1312.57642252,0.00018638,2]
[391246986,1760426599355,-150.0,0.00018812,2]
[391246987,1760426599377,-24.81445767,0.00018865,2]
[391246988,1760426603694,5000.0,0.00018812,2]
[391246989,1760426626400,5000.0,0.00018812,2]
[391246990,1760426632042,-275.18554233,0.00018865,2]
[391246991,1760426642551,300.0,0.00018865,2]
[391246992,1760426642933,169.9603072,0.00018803,2]
[391246993,1760426644320,-189.1049393,0.00018866,2]
[391246994,1760426646682,-188.77685525,0.00018866,2]
[391246995,1760426648280,-467.96226562,0.00018866,2]
[391246996,1760426649343,5000.0,0.00018865,2]
[391246997,1760426672081,2699.87562992,0.00018865,2]
[391246998,1760426674361,-331.88217595,0.00018866,2]
[391246999,1760426678627,-22.27376388,0.00018866,2]
[391247000,1760426678649,-274.90724455,0.00018866,2]
[391247001,1760426681828,-225.09275545,0.00018866,2]
[391247002,1760426681852,-69.63817322,0.00018866,2]
[391247003,1760426683452,-158.84985872,0.00018866,2]
[391247004,1760426686991,-271.51196806,0.00018866,2]
[391247005,1760426687015,-40.30737047,0.00018866,2]
[391247006,1760426688539,-289.71441424,0.00018866,2]
[391247007,1760426701325,300.0,0.00018865,2]
[391247008,1760426702282,300.0,0.00018865,2]
[391247009,1760426702540,300.0,0.00018865,2]
[391247010,1760426702831,-169.97821529,0.00018866,2]
[391247011,1760426702856,-125.47664188,0.00018866,2]
[391247012,1760426703286,1200.0,0.00018865,2]
[391247013,1760426710098,7900.01,0.00018866,2]
[391247014,1760426711712,-152.30621386,0.00018866,2]
[391247015,1760426712878,-7586.44305638,0.00018866,2]
[391247016,1760426713863,-158.19736507,0.00018866,2]
[391247017,1760426716640,-10000.01,0.00018866,2]
[391247018,1760426716955,-10000.01,0.00018866,2]
[391247019,1760426717283,-10000.01,0.00018866,2]
[391247020,1760426717558,-4203.01336469,0.00018866,2]
[391247021,1760426719343,-215.45629876,0.00018866,2]
[391247022,1760426721239,-159.06705936,0.00018866,2]
[391247023,1760426721264,-75.78194838,0.00018866,2]
[391247024,1760426723810,-424.21805162,0.00018866,2]
[391247025,1760426723835,-31.02558436,0.00018866,2]
[391247026,1760426724247,1593.98327062,0.00018866,2]
[391247027,1760426724355,3346.74103184,0.00018866,2]
[391247028,1760426728253,-256.26020855,0.00018866,2]
[391247029,1760426729807,-33.83603207,0.00018866,2]
[391247030,1760426729833,-388.04083486,0.00018866,2]
[391247032,1760426731332,-157.04687986,0.00018866,2]
[391247033,1760426731357,-64.01118383,0.00018866,2]
[391247034,1760426733519,-165.30968499,0.00018866,2]
[391247035,1760426749328,-258.10464491,0.00018866,2]
[391247036,1760426752833,-12.57448627,0.00018866,2]
[391247037,1760426752855,-232.65557814,0.00018866,2]
[391247038,1760426754869,-86.39404429,0.00018866,2]
[391247039,1760426754898,-73.37689025,0.00018866,2]
[391247040,1760426757443,-174.77276667,0.00018866,2]
[391247043,1760426760187,-251.85034308,0.00018866,2]
[391247044,1760426760212,-35.6060453,0.00018866,2]
[391247045,1760426762563,-319.8952655,0.00018866,2]
[391247046,1760426762792,300.0,0.00018865,2]
[391247047,1760426780095,-144.4986892,0.00018866,2]
[391247048,1760426780123,-60.55052417,0.00018866,2]
[391247050,1760426782225,-359.00271622,0.00018866,2]
[391247051,1760426785721,-57.51341184,0.00018866,2]
[391247052,1760426785888,-247.74148124,0.00018866,2]
[391247053,1760426790798,-193.50304249,0.00018866,2]
[391247054,1760426793109,-300.00559851,0.00018914,2]
[391247056,1760426809382,-162.20460367,0.00018914,2]
[391247057,1760426812046,-37.78979782,0.00018914,2]
[391247058,1760426812068,-210.30500679,0.00018914,2]
[391247059,1760426813672,-210.93263016,0.00018914,2]
[391247060,1760426816401,-78.76236305,0.00018914,2]
[391247061,1760426816424,-104.75947139,0.00018914,2]
[391247062,1760426819823,-285.2868755,0.00018914,2]
[391247063,1760426821968,-109.95365311,0.00018914,2]
[391247064,1760426821997,-50.04634689,0.00018914,2]
[391247065,1760426854961,-238.68128589,0.00018913,2]
[391247066,1760426858525,-377.88794792,0.00018898,2]
[391247067,1760426862229,-300.0,0.00018898,2]
[391247069,1760426917399,213.32711023,0.00016,2]
[391247074,1760426922345,-122.11205208,0.00018898,2]
[391247126,1760427032677,-170.10833244,0.00018902,2]
[391247128,1760427032688,-200.0,0.00018902,2]
[391247130,1760427032699,-125.73060283,0.00018913,2]
[391247132,1760427032710,-478.26939717,0.00018913,2]
[391247134,1760427032719,-300.0,0.00018913,2]
[391247136,1760427032728,-111.75332147,0.00018913,2]
[391247139,1760427032762,-1088.24667853,0.00018913,2]
[391247140,1760427032771,-2534.02876697,0.00018914,2]
[391247153,1760427038765,-12276.66073075,0.00018914,2]
[391247154,1760427038775,-1000.0,0.00018914,2]
[391247155,1760427038784,-1000.0,0.00018914,2]
[391247156,1760427038794,-1000.0,0.00018914,2]
[391247157,1760427038803,-1000.0,0.00018914,2]
[391247158,1760427038812,-1000.0,0.00018914,2]
[391247159,1760427038822,-1000.0,0.00018914,2]
[391247160,1760427038832,-1000.0,0.00018914,2]
[391247161,1760427038841,-500.0,0.00018997,2]
[391247162,1760427038851,-500.0,0.00018997,2]
[391247163,1760427038861,-500.0,0.00018997,2]
[391247164,1760427038871,-500.0,0.00018997,2]
[391247165,1760427038882,-500.0,0.00018997,2]
[391247166,1760427038892,-500.0,0.00018997,2]
[391247167,1760427038902,-500.0,0.00018997,2]
[391247168,1760427038912,-500.0,0.00018997,2]
[391247169,1760427038922,-500.0,0.00018997,2]
[391247170,1760427038932,-500.0,0.00018997,2]
[391247171,1760427038942,-20000.0,0.00019,2]
[391247172,1760427038952,-500.0,0.00019,2]
[391247173,1760427038962,-500.0,0.00019,2]
[391247174,1760427038972,-500.0,0.00019,2]
[391247175,1760427038982,-184.78489089,0.00019,2]
[391247176,1760427038992,-500.0,0.00019,2]
[391247177,1760427039006,-500.0,0.00019,2]
[391247178,1760427039016,-500.0,0.00019,2]
[391247179,1760427039026,-500.0,0.00019,2]
[391247180,1760427039037,-500.0,0.00019,2]
[391247181,1760427039046,-500.0,0.00019,2]
[391247182,1760427039056,-500.0,0.00019,2]
[391247183,1760427039066,-154.50877147,0.00019,2]
[391247184,1760427039077,-610.78844603,0.00019,2]
[391247185,1760427039087,-2084.08,0.00019003,2]
[391247186,1760427039098,-2084.08,0.00019003,2]
[391247187,1760427039107,-2084.08,0.00019003,2]
[391247188,1760427039117,-2084.08,0.00019003,2]
[391247189,1760427039127,-2084.08,0.00019003,2]
[391247190,1760427039137,-2084.08,0.00019003,2]
[391247191,1760427039148,-2084.08,0.00019003,2]
[391247192,1760427039158,-2084.08,0.00019003,2]
[391247193,1760427039168,-2084.08,0.00019003,2]
[391247194,1760427039178,-2084.08,0.00019003,2]
[391247195,1760427039189,-2084.08,0.00019003,2]
[391247196,1760427039199,-500.0,0.00019067,2]
[391247197,1760427039208,-645.24286109,0.00019067,2]
[391247198,1760427039218,-2231.88358335,0.00019067,2]
[391247199,1760427039228,-470.84392318,0.00019073,2]
[391247200,1760427039238,-180.36071586,0.00019073,2]
[391247201,1760427039247,-421.7180814,0.00019077,2]
[391247202,1760427039257,-284.35803684,0.00019077,2]
[391247203,1760427039267,-200.0,0.00019078,10]
[391247204,1760427039277,-200.0,0.00019078,10]
[391247205,1760427039287,-370000.0,0.00019078,2]
[391247206,1760427039297,-151.0,0.00019166,2]
[391247207,1760427039307,-151.0,0.00019166,2]
[391247208,1760427039316,-151.0,0.00019166,2]
[391247209,1760427039325,-151.0,0.00019166,2]
[391247210,1760427039334,-151.0,0.00019166,2]
[391247211,1760427039342,-151.0,0.00019166,2]
[391247212,1760427039351,-151.0,0.00019166,2]
[391247213,1760427039360,-151.0,0.00019166,2]
[391247214,1760427039369,-151.0,0.00019166,2]
[391247215,1760427039378,-151.0,0.00019166,2]
[391247216,1760427039386,-151.0,0.00019166,2]
[391247217,1760427039397,-151.0,0.00019166,2]
[391247218,1760427039406,-151.0,0.00019166,2]
[391247219,1760427039415,-151.0,0.00019166,2]
[391247220,1760427039423,-151.0,0.00019166,2]
[391247221,1760427039432,-151.0,0.00019166,2]
[391247222,1760427039441,-151.0,0.00019166,2]
[391247223,1760427039450,-151.0,0.00019166,2]
[391247224,1760427039459,-151.0,0.00019166,2]
[391247225,1760427039468,-287.66495614,0.00019166,2]
[391247226,1760427039477,-500.0,0.00019173,2]
[391247227,1760427039486,-500.0,0.00019173,2]
[391247228,1760427039495,-461.4913703,0.00019173,2]
[391247229,1760427039504,-2084.08,0.00019177,2]
[391247230,1760427039513,-2084.08,0.00019177,2]
[391247231,1760427039522,-2084.08,0.00019177,2]
[391247232,1760427039530,-2084.08,0.00019177,2]
[391247233,1760427039539,-2084.08,0.00019177,2]
[391247234,1760427039548,-502.22432333,0.00019178,2]
[391247235,1760427039557,-448.50611235,0.00019178,2]
[391247236,1760427039566,-278.0,0.00019178,2]
[391247237,1760427039575,-500.0,0.00019178,2]
[391247238,1760427039583,-500.0,0.00019178,2]
[391247239,1760427039592,-500.0,0.00019178,2]
[391247240,1760427039601,-365.6792584,0.00019178,2]
[391247241,1760427039610,-500.0,0.00019178,2]
[391247242,1760427039619,-500.0,0.00019178,2]
[391247243,1760427039627,-500.0,0.00019178,2]
[391247244,1760427039636,-500.0,0.00019178,2]
[391247245,1760427039650,-522.37958291,0.00019178,2]
[391247246,1760427039660,-487.51358852,0.00019178,2]
[391247247,1760427039669,-500.0,0.00019178,2]
[391247248,1760427039680,-500.0,0.00019178,2]
[391247249,1760427039688,-500.0,0.00019178,2]
[391247250,1760427039698,-500.0,0.00019178,2]
[391247251,1760427039707,-500.0,0.00019178,2]
[391247252,1760427039716,-500.0,0.00019178,2]
[391247253,1760427039726,-500.0,0.00019178,2]
[391247254,1760427039735,-500.0,0.00019178,2]
[391247255,1760427039744,-613.86250346,0.00019178,2]
[391247256,1760427039753,-500.0,0.00019178,2]
[391247257,1760427039872,-500.0,0.00019178,2]
[391247258,1760427039882,-502.05697486,0.00019178,2]
[391247259,1760427039892,-500.0,0.00019178,2]
[391247260,1760427039902,-500.0,0.00019178,2]
[391247261,1760427039911,-500.0,0.00019178,2]
[391247262,1760427039921,-500.0,0.00019178,2]
[391247263,1760427039930,-500.0,0.00019178,2]
[391247264,1760427039940,-268.67,0.00019178,2]
[391247265,1760427039949,-229.1629505,0.00019178,2]
[391247266,1760427039958,-500.0,0.00019178,2]
[391247267,1760427039967,-500.0,0.00019178,2]
[391247268,1760427039976,-500.0,0.00019178,2]
[391247269,1760427039986,-500.0,0.00019178,2]
[391247270,1760427039996,-500.0,0.00019178,2]
[391247271,1760427040007,-500.0,0.00019178,2]
[391247272,1760427040016,-500.0,0.00019178,2]
[391247273,1760427040025,-500.0,0.00019178,2]
[391247274,1760427040035,-506.70649016,0.00019178,2]
[391247275,1760427040044,-500.0,0.00019178,2]
[391247276,1760427040053,-500.0,0.00019178,2]
[391247277,1760427040063,-500.0,0.00019178,2]
[391247278,1760427040074,-500.0,0.00019178,2]
[391247279,1760427040083,-500.0,0.00019178,2]
[391247280,1760427040092,-500.0,0.00019178,2]
[391247281,1760427040101,-645.33582117,0.00019178,2]
[391247282,1760427040110,-500.0,0.00019178,2]
[391247283,1760427040119,-500.0,0.00019178,2]
[391247284,1760427040129,-500.0,0.00019178,2]
[391247285,1760427040139,-505.94559293,0.00019178,2]
[391247286,1760427040150,-500.0,0.00019178,2]
[391247287,1760427040159,-500.0,0.00019178,2]
[391247288,1760427040169,-500.0,0.00019178,2]
[391247289,1760427040177,-500.0,0.00019178,2]
[391247290,1760427040187,-500.0,0.00019178,2]
[391247291,1760427040196,-500.0,0.00019178,2]
[391247292,1760427040205,-344.25301778,0.00019178,2]
[391247293,1760427040215,-1696.91,0.00019178,2]
[391247294,1760427040225,-1696.91,0.00019178,2]
[391247295,1760427040234,-1696.91,0.00019178,2]
[391247296,1760427040244,-1696.91,0.00019178,2]
[391247297,1760427040253,-1696.91,0.00019178,2]
[391247298,1760427040262,-1696.91,0.00019178,2]
[391247299,1760427040271,-1696.91,0.00019178,2]
[391247300,1760427040280,-1696.91,0.00019178,2]
[391247301,1760427040289,-1696.91,0.00019178,2]
[391247302,1760427040298,-1696.91,0.00019178,2]
[391247303,1760427040307,-1696.91,0.00019178,2]
[391247304,1760427040317,-1696.91,0.00019178,2]
[391247305,1760427040326,-1696.91,0.00019178,2]
[391247306,1760427040335,-1696.91,0.00019178,2]
[391247307,1760427040344,-1696.91,0.00019178,2]
[391247308,1760427040354,-1696.91,0.00019178,2]
[391247309,1760427040363,-1696.91,0.00019178,2]
[391247310,1760427040372,-1696.91,0.00019178,2]
[391247311,1760427040382,-1696.91,0.00019178,2]
[391247312,1760427040391,-1696.91,0.00019178,2]
[391247313,1760427040401,-1696.91,0.00019178,2]
[391247314,1760427040410,-1696.91,0.00019178,2]
[391247315,1760427040419,-1696.91,0.00019178,2]
[391247316,1760427040428,-1697.05193334,0.00019178,2]
[391247317,1760427040438,-617.45,0.00019178,2]
[391247318,1760427040448,-617.45,0.00019178,2]
[391247319,1760427040457,-617.45,0.00019178,2]
[391247320,1760427040467,-617.45,0.00019178,2]
[391247321,1760427040476,-617.45,0.00019178,2]
[391247322,1760427040486,-617.45,0.00019178,2]
[391247323,1760427040495,-617.45,0.00019178,2]
[391247324,1760427040504,-617.45,0.00019178,2]
[391247325,1760427040516,-617.45,0.00019178,2]
[391247326,1760427040525,-617.45,0.00019178,2]
[391247327,1760427040535,-617.45,0.00019178,2]
[391247328,1760427040545,-617.45,0.00019178,2]
[391247329,1760427040554,-617.45,0.00019178,2]
[391247330,1760427040563,-617.45,0.00019178,2]
[391247331,1760427040572,-617.45,0.00019178,2]
[391247332,1760427040581,-617.45,0.00019178,2]
[391247333,1760427040590,-617.45,0.00019178,2]
[391247334,1760427040599,-617.45,0.00019178,2]
[391247335,1760427040608,-617.45,0.00019178,2]
[391247336,1760427040617,-617.45,0.00019178,2]
[391247337,1760427040626,-617.45,0.00019178,2]
[391247339,1760427040635,-617.45,0.00019178,2]
[391247340,1760427040644,-617.45,0.00019178,2]
[391247341,1760427040653,-617.6692665,0.00019178,2]
[391247343,1760427040663,-500.0,0.00019178,2]
[391247345,1760427040672,-500.0,0.00019178,2]
[391247346,1760427040681,-500.0,0.00019178,2]
[391247348,1760427040690,-500.0,0.00019178,2]
[391247350,1760427040699,-500.0,0.00019178,2]
[391247351,1760427040708,-500.0,0.00019178,2]
[391247353,1760427040719,-544.32151416,0.00019178,2]
[391247354,1760427040728,-500.0,0.00019178,2]
[391247355,1760427040738,-500.0,0.00019178,2]
[391247356,1760427040747,-500.0,0.00019178,2]
[391247357,1760427040755,-500.0,0.00019178,2]
[391247358,1760427040764,-500.0,0.00019178,2]
[391247359,1760427040773,-327.99031778,0.00019178,2]
[391247360,1760427040783,-545.6638201,0.00019178,2]
[391247361,1760427040792,-500.0,0.00019178,2]
[391247363,1760427040801,-500.0,0.00019178,2]
[391247364,1760427040811,-500.0,0.00019178,2]
[391247365,1760427040820,-500.0,0.00019178,2]
[391247366,1760427040829,-500.0,0.00019178,2]
[391247367,1760427040839,-500.0,0.00019178,2]
[391247368,1760427040848,-500.0,0.00019178,2]
[391247369,1760427040857,-500.0,0.00019178,2]
[391247370,1760427040866,-500.0,0.00019178,2]
[391247371,1760427040875,-500.0,0.00019178,2]
[391247372,1760427040884,-500.0,0.00019178,2]
[391247373,1760427040894,-538.21,0.00019178,2]
[391247374,1760427040903,-500.0,0.00019178,2]
[391247375,1760427040912,-500.0,0.00019178,2]
[391247376,1760427040924,-500.0,0.00019178,2]
[391247377,1760427040934,-500.0,0.00019178,2]
[391247378,1760427040944,-500.0,0.00019178,2]
[391247379,1760427040954,-500.0,0.00019178,2]
[391247380,1760427040963,-500.0,0.00019178,2]
[391247381,1760427040972,-294.64672216,0.00019178,2]
[391247382,1760427040982,-500.0,0.00019178,2]
[391247383,1760427040994,-500.0,0.00019178,2]
[391247384,1760427041008,-500.0,0.00019178,2]
[391247385,1760427041018,-500.0,0.00019178,2]
[391247386,1760427041027,-155.75805946,0.00019178,2]
[391247387,1760427041038,-500.0,0.00019178,2]
[391247388,1760427041048,-500.0,0.00019178,2]
[391247389,1760427041058,-500.0,0.00019178,2]
[391247390,1760427041067,-500.0,0.00019178,2]
[391247391,1760427041079,-500.0,0.00019178,2]
[391247392,1760427041088,-500.0,0.00019178,2]
[391247393,1760427041097,-500.0,0.00019178,2]
[391247394,1760427041107,-725.53,0.00019178,2]
[391247395,1760427041116,-500.0,0.00019178,2]
[391247396,1760427041126,-725.53,0.00019178,2]
[391247397,1760427041135,-500.0,0.00019178,2]
[391247398,1760427041149,-725.53,0.00019178,2]
[391247399,1760427041158,-500.0,0.00019178,2]
[391247400,1760427041167,-725.53,0.00019178,2]
[391247401,1760427041176,-500.0,0.00019178,2]
[391247402,1760427041185,-500.0,0.00019178,2]
[391247403,1760427041194,-725.53,0.00019178,2]
[391247404,1760427041204,-500.0,0.00019178,2]
[391247405,1760427041213,-725.53,0.00019178,2]
[391247406,1760427041222,-453.89179772,0.00019178,2]
[391247407,1760427041231,-725.53,0.00019178,2]
[391247408,1760427041241,-725.53,0.00019178,2]
[391247409,1760427041250,-725.53,0.00019178,2]
[391247410,1760427041260,-725.53,0.00019178,2]
[391247411,1760427041269,-725.53,0.00019178,2]
[391247412,1760427041279,-725.53,0.00019178,2]
[391247413,1760427041288,-2944.67,0.00019178,2]
[391247414,1760427041298,-725.53,0.00019178,2]
[391247415,1760427041307,-2944.67,0.00019178,2]
[391247416,1760427041318,-725.53,0.00019178,2]
[391247417,1760427041328,-2944.67,0.00019178,2]
[391247418,1760427041337,-2944.67,0.00019178,2]
[391247419,1760427041346,-725.53,0.00019178,2]
[391247420,1760427041355,-725.53,0.00019178,2]
[391247421,1760427041364,-2944.67,0.00019178,2]
[391247422,1760427041373,-725.53,0.00019178,2]
[391247423,1760427041383,-2944.67,0.00019178,2]
[391247424,1760427041391,-725.53,0.00019178,2]
[391247425,1760427041404,-2944.67,0.00019178,2]
[391247426,1760427041413,-2944.67,0.00019178,2]
[391247427,1760427041423,-725.53,0.00019178,2]
[391247428,1760427041432,-2944.67,0.00019178,2]
[391247429,1760427041442,-725.53,0.00019178,2]
[391247430,1760427041451,-2944.67,0.00019178,2]
[391247431,1760427041460,-725.53,0.00019178,2]
[391247432,1760427041470,-2944.67,0.00019178,2]
[391247433,1760427041479,-725.53,0.00019178,2]
[391247434,1760427041487,-2944.67,0.00019178,2]
[391247435,1760427041496,-725.53,0.00019178,2]
[391247436,1760427041506,-2944.67,0.00019178,2]
[391247437,1760427041514,-548.63420956,0.00019178,2]
[391247438,1760427041524,-725.64901965,0.00019178,2]
[391247439,1760427041533,-2944.67,0.00019178,2]
[391247440,1760427041542,-2944.67,0.00019178,2]
[391247441,1760427041551,-2944.67,0.00019178,2]
[391247442,1760427041559,-2944.67,0.00019178,2]
[391247443,1760427041568,-2944.67,0.00019178,2]
[391247444,1760427041577,-2944.67,0.00019178,2]
[391247445,1760427041586,-2944.67,0.00019178,2]
[391247446,1760427041595,-2944.67,0.00019178,2]
[391247447,1760427041604,-2944.67,0.00019178,2]
[391247448,1760427041613,-2944.67,0.00019178,2]
[391247449,1760427041622,-2944.68303641,0.00019178,2]
[391247450,1760427041631,-781.83,0.00019178,2]
[391247451,1760427041640,-781.83,0.00019178,2]
[391247452,1760427041653,-781.83,0.00019178,2]
[391247453,1760427041662,-781.83,0.00019178,2]
[391247454,1760427041671,-781.83,0.00019178,2]
[391247455,1760427041680,-781.83,0.00019178,2]
[391247456,1760427041689,-781.83,0.00019178,2]
[391247457,1760427041698,-781.83,0.00019178,2]
[391247458,1760427041707,-781.83,0.00019178,2]
[391247459,1760427041716,-781.83,0.00019178,2]
[391247460,1760427041725,-781.83,0.00019178,2]
[391247461,1760427041734,-781.83,0.00019178,2]
[391247462,1760427041743,-781.83,0.00019178,2]
[391247463,1760427041752,-781.83,0.00019178,2]
[391247464,1760427041761,-781.83,0.00019178,2]
[391247465,1760427041770,-781.83,0.00019178,2]
[391247466,1760427041779,-781.83,0.00019178,2]
[391247467,1760427041788,-781.83,0.00019178,2]
[391247468,1760427041797,-781.83,0.00019178,2]
[391247469,1760427041806,-781.83,0.00019178,2]
[391247470,1760427041815,-781.83,0.00019178,2]
[391247471,1760427041824,-781.83,0.00019178,2]
[391247472,1760427041833,-781.83,0.00019178,2]
[391247473,1760427041842,-781.92524243,0.00019178,2]
[391247474,1760427041851,-756.56,0.00019178,2]
[391247475,1760427041859,-756.56,0.00019178,2]
[391247476,1760427041868,-756.56,0.00019178,2]
[391247477,1760427041878,-756.56,0.00019178,2]
[391247478,1760427041887,-756.56,0.00019178,2]
[391247479,1760427041899,-756.56,0.00019178,2]
[391247480,1760427041908,-756.56,0.00019178,2]
[391247481,1760427041917,-756.56,0.00019178,2]
[391247482,1760427041926,-756.56,0.00019178,2]
[391247483,1760427041936,-756.56,0.00019178,2]
[391247484,1760427041946,-756.56,0.00019178,2]
[391247485,1760427041955,-756.56,0.00019178,2]
[391247486,1760427041963,-756.56,0.00019178,2]
[391247487,1760427041972,-756.56,0.00019178,2]
[391247488,1760427041981,-756.56,0.00019178,2]
[391247489,1760427041990,-756.56,0.00019178,2]
[391247490,1760427042003,-756.56,0.00019178,2]
[391247491,1760427042013,-756.56,0.00019178,2]
[391247492,1760427042022,-756.56,0.00019178,2]
[391247493,1760427042031,-756.56,0.00019178,2]
[391247494,1760427042041,-756.56,0.00019178,2]
[391247495,1760427042050,-756.56,0.00019178,2]
[391247496,1760427042059,-756.56,0.00019178,2]
[391247497,1760427042069,-756.62,0.00019178,2]
[391247498,1760427042082,-1818.7,0.00019178,2]
[391247499,1760427042090,-500.0,0.00019178,2]
[391247500,1760427042099,-1818.7,0.00019178,2]
[391247501,1760427042108,-500.0,0.00019178,2]
[391247502,1760427042118,-1818.7,0.00019178,2]
[391247503,1760427042127,-500.0,0.00019178,2]
[391247504,1760427042135,-1818.7,0.00019178,2]
[391247505,1760427042146,-1818.7,0.00019178,2]
[391247506,1760427042155,-500.0,0.00019178,2]
[391247507,1760427042164,-1818.7,0.00019178,2]
[391247508,1760427042173,-500.0,0.00019178,2]
[391247509,1760427042182,-1818.7,0.00019178,2]
[391247510,1760427042191,-500.0,0.00019178,2]
[391247511,1760427042201,-1818.7,0.00019178,2]
[391247512,1760427042211,-500.0,0.00019178,2]
[391247513,1760427042220,-1818.7,0.00019178,2]
[391247514,1760427042229,-500.0,0.00019178,2]
[391247515,1760427042238,-1818.7,0.00019178,2]
[391247516,1760427042248,-500.0,0.00019178,2]
[391247517,1760427042256,-1818.7,0.00019178,2]
[391247518,1760427042265,-500.0,0.00019178,2]
[391247519,1760427042275,-1818.7,0.00019178,2]
[391247520,1760427042284,-1818.7,0.00019178,2]